bitfinex-derivatives/quotes_BTCF0:USTF0_20250921
["timestamp","ask_amount","ask_price","bid_price","bid_amount"]
[1758416975530,0.9080543,115640.0,115630.0,0.65737374]
[1758416976737,0.9080543,115640.0,115630.0,0.65657374]
[1758416984147,0.1276143,115640.0,115630.0,0.65657374]
[1758416984340,0.9080143,115640.0,115630.0,0.65657374]
[1758416991050,0.9080143,115640.0,115630.0,0.85871707]
[1758416991647,0.9080143,115640.0,115630.0,0.49791707]
[1758416991851,0.9080143,115640.0,115630.0,0.85871707]
[1758416996157,0.39413804,115640.0,115630.0,0.59219333]
[1758416996453,1.17453804,115640.0,115630.0,0.59219333]
[1758416996653,0.9080143,115640.0,115630.0,0.85871707]
[1758417000156,1.17453804,115640.0,115630.0,0.85871707]
[1758417005062,0.9080143,115640.0,115630.0,0.85871707]
[1758417009666,0.9080143,115640.0,115630.0,0.65657374]
[1758417009857,0.9080143,115640.0,115630.0,0.39005]
[1758417011263,1.17453804,115640.0,115630.0,0.39005]
[1758417017166,1.17453804,115640.0,115630.0,0.54570002]
[1758417017964,1.17453804,115640.0,115630.0,0.39005]
[1758417018963,1.17453804,115640.0,115630.0,0.54570004]
[1758417019872,1.17453804,115640.0,115630.0,0.39005]
[1758417025975,1.17453804,115640.0,115630.0,0.59239505]
[1758417027676,0.9080143,115640.0,115630.0,0.59239505]
[1758417027879,1.17455539,115640.0,115630.0,0.85893614]
[1758417028878,1.17455539,115640.0,115630.0,0.49813614]
[1758417029177,1.17455539,115640.0,115630.0,0.85893614]
[1758417031476,1.17455539,115640.0,115630.0,0.49813614]
[1758417031677,1.17455539,115640.0,115630.0,0.85893614]
[1758417037882,1.17455539,115640.0,115630.0,0.65659109]
[1758417048307,1.17455539,115640.0,115630.0,0.02925]
[1758417048601,1.17455539,115640.0,115630.0,0.29579109]
[1758417053312,1.17455539,115640.0,115630.0,0.45139985]
[1758417053909,1.17455539,115640.0,115630.0,0.18485876]
[1758417054411,1.17455539,115640.0,115630.0,0.45139985]
[1758417059817,1.17455539,115640.0,115630.0,0.29579109]
[1758417072921,1.17455539,115640.0,115630.0,0.45139947]
[1758417073713,1.17455539,115640.0,115630.0,0.29579109]
[1758417079424,1.17455539,115640.0,115630.0,0.02925]
[1758417079622,0.9080143,115640.0,115630.0,0.29579109]
[1758417079824,1.17455539,115640.0,115630.0,0.29579109]
[1758417085128,0.1276143,115640.0,115630.0,0.29579109]
[1758417085327,0.9079343,115640.0,115630.0,0.29579109]
[1758417085527,1.17447539,115640.0,115630.0,0.29579109]
[1758417087432,0.1276143,115640.0,115630.0,0.29579109]
[1758417087632,1.17599539,115640.0,115630.0,0.29579109]
[1758417089332,0.39415539,115640.0,115630.0,0.29579109]
[1758417089632,1.17599539,115640.0,115630.0,0.29579109]
[1758417089827,0.9094543,115640.0,115630.0,0.29577105]
[1758417090434,0.9094543,115640.0,115630.0,0.45137943]
[1758417091130,0.9094543,115640.0,115630.0,0.18485838]
[1758417091331,0.9094543,115640.0,115630.0,0.02925]
[1758417091530,0.9094543,115640.0,115630.0,0.29577105]
[1758417094638,1.17597535,115640.0,115630.0,0.02925]
[1758417095930,0.9094543,115640.0,115630.0,0.02925]
[1758417100342,0.9094543,115640.0,115630.0,0.18489659]
[1758417101143,0.9094543,115640.0,115630.0,0.45141764]
[1758417108553,0.9094543,115640.0,115630.0,0.18489659]
[1758417110053,0.9094543,115640.0,115630.0,0.02925]
[1758417111054,0.9094543,115640.0,115630.0,0.29577105]
[1758417111557,0.9094543,115640.0,115630.0,0.45141845]
[1758417113959,0.9094543,115640.0,115630.0,0.29577105]
[1758417115459,0.9094543,115640.0,115630.0,0.45141859]
[1758417116360,0.9094543,115640.0,115630.0,0.29577105]
[1758417122909,0.9094543,115640.0,115630.0,0.45141859]
[1758417123564,0.9094543,115640.0,115630.0,0.18489754]
[1758417123766,0.9094543,115640.0,115630.0,0.45141859]
[1758417124664,0.9094543,115640.0,115630.0,0.18489754]
[1758417126568,0.9094543,115640.0,115630.0,0.45141859]
[1758417127969,0.9094543,115640.0,115630.0,0.18489754]
[1758417130069,0.9094543,115640.0,115630.0,0.02925]
[1758417134176,0.9094543,115640.0,115630.0,0.18490603]
[1758417136775,0.9094543,115640.0,115630.0,0.02925]
[1758417137579,0.9094543,115640.0,115630.0,0.18490602]
[1758417139175,0.9094543,115640.0,115630.0,0.02925]
[1758417139877,0.9094543,115640.0,115630.0,0.18490602]
[1758417141578,0.9094543,115640.0,115630.0,0.02925]
[1758417142180,0.1276143,115640.0,115630.0,0.02925]
[1758417142379,0.9102543,115640.0,115630.0,0.02925]
[1758417142983,0.1276143,115640.0,115630.0,0.02925]
[1758417143183,0.9102143,115640.0,115630.0,0.29577105]
[1758417144582,0.9102143,115640.0,115630.0,0.45142703]
[1758417145682,0.9102143,115640.0,115630.0,0.18490598]
[1758417145883,0.9102143,115640.0,115630.0,0.45142703]
[1758417149881,0.9102143,115640.0,115630.0,0.18490598]
[1758417150085,0.9102143,115640.0,115630.0,0.45142703]
[1758417151887,1.17673898,115640.0,115630.0,0.45143066]
[1758417153389,1.17673898,115640.0,115630.0,0.29577468]
[1758417157985,1.17673898,115640.0,115630.0,0.02925]
[1758417158289,1.17673898,115640.0,115630.0,0.29577468]
[1758417171399,1.17673898,115640.0,115630.0,0.45142883]
[1758417179700,1.17673898,115640.0,115630.0,0.29577468]
[1758417181204,1.17673898,115640.0,115630.0,0.45142883]
[1758417185913,1.17673898,115640.0,115630.0,0.29577468]
[1758417196926,1.17673898,115640.0,115630.0,0.02925]
[1758417197126,1.17673898,115640.0,115630.0,0.29577468]
[1758417202730,1.17673898,115640.0,115630.0,0.45143073]
[1758417204231,1.17673898,115640.0,115630.0,0.18490605]
[1758417204434,1.17673898,115640.0,115630.0,0.45143073]
[1758417205232,1.17673898,115640.0,115630.0,0.18490605]
[1758417205535,1.17673898,115640.0,115630.0,0.45143073]
[1758417210840,1.17673898,115640.0,115630.0,0.29577468]
[1758417211939,0.9102143,115640.0,115630.0,0.02925]
[1758417214340,0.9102143,115640.0,115630.0,0.29578953]
[1758417216942,0.9102143,115640.0,115630.0,0.4514457]
[1758417217445,0.9102143,115640.0,115630.0,0.18490617]
[1758417217638,0.9102143,115640.0,115630.0,0.4514457]
[1758417218541,0.9102143,115640.0,115630.0,0.29578953]
[1758417218942,0.9102143,115640.0,115630.0,0.45144568]
[1758417223346,0.9102143,115640.0,115630.0,0.18490615]
[1758417223844,0.9102143,115640.0,115630.0,0.45144568]
[1758417224445,0.9102143,115640.0,115630.0,0.29578953]
[1758417229756,0.1276143,115640.0,115630.0,0.29578953]
[1758417230053,0.9086543,115640.0,115630.0,0.29578953]
[1758417231749,0.9086543,115640.0,115630.0,0.02925]
[1758417232049,0.9086543,115640.0,115630.0,0.29578953]
[1758417233350,0.1276143,115640.0,115630.0,0.29578953]
[1758417233656,0.9086543,115640.0,115630.0,0.29578953]
[1758417237362,0.9086543,115640.0,115630.0,0.02925]
[1758417237659,0.9086543,115640.0,115630.0,0.29578953]
[1758417237866,0.9086543,115640.0,115630.0,0.45144365]
[1758417243564,0.9086543,115640.0,115630.0,0.29578953]
[1758417267281,0.9086543,115640.0,115630.0,0.45144542]
[1758417268375,0.1276143,115640.0,115630.0,0.45144542]
[1758417268582,0.9086143,115640.0,115630.0,0.45144542]
[1758417268781,0.92875948,115640.0,115630.0,0.45144542]
[1758417273581,0.92875948,115640.0,115630.0,0.29578953]
[1758417273887,1.19528179,115640.0,115630.0,0.29577231]
[1758417285188,1.19528179,115640.0,115630.0,0.45142504]
[1758417285995,0.92875948,115640.0,115630.0,0.45142504]
[1758417286397,1.19528179,115640.0,115630.0,0.45142504]
[1758417289396,1.19528179,115640.0,115630.0,0.29577231]
[1758417289596,1.19528179,115640.0,115630.0,0.45142497]
[1758417295904,0.92875948,115640.0,115630.0,0.45142497]
[1758417296203,1.19528179,115640.0,115630.0,0.18490266]
[1758417296403,1.19528179,115640.0,115630.0,0.45142497]
[1758417297605,1.19528179,115640.0,115630.0,0.29577231]
[1758417306411,1.19528179,115640.0,115630.0,0.02925]
[1758417306610,1.19528179,115640.0,115630.0,0.29577231]
[1758417307010,1.55608179,115640.0,115630.0,0.29577231]
[1758417307213,1.19528179,115640.0,115630.0,0.29577231]
[1758417307511,1.55608179,115640.0,115630.0,0.29577231]
[1758417308112,1.28955948,115640.0,115630.0,0.29577231]
[1758417308304,1.55608179,115640.0,115630.0,0.29577231]
[1758417309107,1.28955948,115640.0,115630.0,0.29577231]
[1758417309308,1.55608179,115640.0,115630.0,0.29577231]
[1758417310614,1.55628179,115640.0,115630.0,0.29577231]
[1758417312718,1.55628179,115640.0,115630.0,0.45142158]
[1758417313719,1.55628179,115640.0,115630.0,0.29577231]
[1758417319025,1.28975948,115640.0,115630.0,0.29577231]
[1758417319325,1.55628179,115640.0,115630.0,0.29577231]
[1758417321327,1.28975948,115640.0,115630.0,0.29577231]
[1758417321626,1.55628179,115640.0,115630.0,0.29577231]
[1758417325436,1.28975948,115640.0,115630.0,0.29577231]
[1758417325636,1.55628179,115640.0,115630.0,0.29577231]
[1758417329438,1.28975948,115640.0,115630.0,0.29577231]
[1758417329640,1.55628179,115640.0,115630.0,0.29577231]
[1758417334043,0.50855948,115640.0,115630.0,0.29577231]
[1758417334237,1.28959948,115640.0,115630.0,0.29577231]
[1758417334442,1.55612179,115640.0,115630.0,0.29577231]
[1758417335145,0.77508179,115640.0,115630.0,0.29577231]
[1758417335344,1.55608179,115640.0,115630.0,0.29577231]
[1758417335746,1.28955948,115640.0,115630.0,0.29577228]
[1758417338042,1.28955948,115640.0,115630.0,0.45142942]
[1758417338642,0.92875948,115640.0,115630.0,0.45142942]
[1758417338943,1.28955948,115640.0,115630.0,0.45142942]
[1758417341146,1.28955948,115640.0,115630.0,0.29577228]
[1758417343048,1.28955948,115640.0,115630.0,0.45142927]
[1758417343551,1.28955948,115640.0,115630.0,0.18490699]
[1758417343749,1.28955948,115640.0,115630.0,0.45142927]
[1758417346245,0.50855948,115640.0,115630.0,0.45142927]
[1758417346449,1.28951948,115640.0,115630.0,0.45142927]
[1758417363963,1.28951948,115640.0,115630.0,0.29577228]
[1758417365365,1.28951948,115640.0,115630.0,0.27352228]
[1758417367959,1.28951948,115640.0,115630.0,0.29544228]
[1758417375274,1.28951948,115640.0,115630.0,0.45109931]
[1758417376173,1.28951948,115640.0,115630.0,0.29544228]
[1758417378476,1.28951948,115640.0,115630.0,0.45109931]
[1758417378979,1.28951948,115640.0,115630.0,0.18457703]
[1758417379174,1.28951948,115640.0,115630.0,0.42917931]
[1758417381080,1.28951948,115640.0,115630.0,0.27352228]
[1758417385379,1.28951948,115640.0,115630.0,0.29557228]
[1758417389285,1.2693743,115640.0,115630.0,0.29557228]
[1758417390686,1.2693343,115640.0,115630.0,0.29557228]
[1758417390983,0.4884143,115640.0,115630.0,0.29557228]
[1758417391172,1.2693343,115640.0,115630.0,0.29557228]
[1758417391886,0.4884143,115640.0,115630.0,0.29557228]
[1758417392088,1.2693343,115640.0,115630.0,0.29557228]
[1758417397391,0.9085343,115640.0,115630.0,0.29557228]
[1758417397591,1.2693343,115640.0,115630.0,0.29557228]
[1758417397890,1.2693343,115640.0,115630.0,0.29556208]
[1758417401089,1.2693343,115640.0,115630.0,0.45121916]
[1758417401794,1.2693343,115640.0,115630.0,0.29556208]
[1758417402295,0.4884143,115640.0,115630.0,0.29556208]
[1758417402502,1.2692943,115640.0,115630.0,0.29556208]
[1758417405300,0.4884143,115640.0,115630.0,0.29556208]
[1758417405493,1.2692943,115640.0,115630.0,0.29556208]
[1758417406103,1.2692943,115640.0,115630.0,0.49790713]
[1758417408496,1.2692943,115640.0,115630.0,0.29556208]
[1758417410908,0.9124944,115640.0,115630.0,1.00930596]
[1758417411108,0.009,115640.0,115630.0,2.31309804]
[1758417411312,0.15655,115660.0,115650.0,0.1084669]
[1758417411607,0.15655,115660.0,115650.0,1.00229106]
[1758417411994,0.2429594,115660.0,115650.0,1.00229106]
[1758417412199,0.2429594,115660.0,115650.0,1.20463611]
[1758417412398,0.1229994,115660.0,115650.0,1.20463611]
[1758417412599,0.9038794,115660.0,115650.0,1.20463611]
[1758417413911,0.9038794,115660.0,115650.0,0.93812403]
[1758417414609,0.9038794,115660.0,115650.0,0.73577898]
[1758417415012,0.9038794,115660.0,115650.0,0.28856208]
[1758417415013,0.1229994,115660.0,115650.0,0.28856208]
[1758417415218,0.9038394,115660.0,115650.0,0.28856208]
[1758417419109,0.9038394,115660.0,115650.0,0.44370949]
[1758417425022,1.79766356,115660.0,115650.0,0.15514741]
[1758417425218,1.79766356,115660.0,115650.0,0.42205949]
[1758417425517,1.53115148,115660.0,115650.0,0.26691208]
[1758417425723,1.79766356,115660.0,115650.0,0.0004]
[1758417426109,1.53115148,115660.0,115650.0,0.26691208]
[1758417426320,1.53115148,115660.0,115650.0,0.26651208]
[1758417426617,1.53115148,115660.0,115650.0,0.26691208]
[1758417426817,1.79766356,115660.0,115650.0,0.26691208]
[1758417432124,1.53115148,115660.0,115650.0,0.0004]
[1758417432822,1.53115148,115660.0,115650.0,0.15554741]
[1758417435423,1.79766356,115660.0,115650.0,0.15554741]
[1758417435620,2.04766356,115660.0,115650.0,0.15514741]
[1758417435923,2.04766356,115660.0,115650.0,0.0004]
[1758417437623,0.1211669,115650.0,115640.0,0.0001]
[1758417437828,0.1211744,115640.0,115630.0,0.44783949]
[1758417438026,1.2627344,115640.0,115630.0,0.44773949]
[1758417438323,1.52924648,115640.0,115630.0,0.44773949]
[1758417438625,1.52724648,115640.0,115630.0,0.44773949]
[1758417439123,1.2607344,115640.0,115630.0,0.44773949]
[1758417440428,1.2607344,115640.0,115630.0,0.45073949]
[1758417440723,1.2607344,115640.0,115630.0,0.02908]
[1758417440924,1.52724648,115640.0,115630.0,0.29559208]
[1758417441223,1.52724648,115640.0,115630.0,0.27351208]
[1758417441826,1.52724648,115640.0,115630.0,0.27391208]
[1758417444227,1.2607344,115640.0,115630.0,0.27391208]
[1758417446025,1.2637344,115640.0,115630.0,0.27291208]
[1758417446428,1.2637344,115640.0,115630.0,0.42805949]
[1758417446829,1.53024648,115640.0,115630.0,0.42605949]
[1758417447931,1.52724648,115640.0,115630.0,0.42305949]
[1758417448134,1.53324648,115640.0,115630.0,0.42605949]
[1758417456243,1.2667344,115640.0,115630.0,0.15954741]
[1758417458440,1.2667344,115640.0,115630.0,0.0044]
[1758417470057,1.2667344,115640.0,115630.0,0.20674505]
[1758417473657,1.2667344,115640.0,115630.0,0.0044]
[1758417480358,1.53327926,115640.0,115630.0,0.0044]
[1758417490865,1.2667344,115640.0,115630.0,0.16006005]
[1758417491665,1.53327926,115640.0,115630.0,0.16006005]
[1758417497975,1.53327926,115640.0,115630.0,0.0044]
[1758417500575,0.75251926,115640.0,115630.0,0.0044]
[1758417500767,1.53331926,115640.0,115630.0,0.0044]
[1758417503974,0.75251926,115640.0,115630.0,0.0044]
[1758417504174,1.53331926,115640.0,115630.0,0.0044]
[1758417510184,0.75251926,115640.0,115630.0,0.0044]
[1758417510480,1.53331926,115640.0,115630.0,0.0044]
[1758417512386,0.75251926,115640.0,115630.0,0.0044]
[1758417512682,1.53331926,115640.0,115630.0,0.16003347]
[1758417513684,0.75251926,115640.0,115630.0,0.16003347]
[1758417513882,1.2667744,115640.0,115630.0,0.16003347]
[1758417514186,1.53331926,115640.0,115630.0,0.16003347]
[1758417514481,1.53331926,115640.0,115630.0,0.42657833]
[1758417515382,1.53331926,115640.0,115630.0,0.16003347]
[1758417516385,1.2667744,115640.0,115630.0,0.16003347]
[1758417517379,1.2667744,115640.0,115630.0,0.0044]
[1758417518886,1.2667744,115640.0,115630.0,0.16003347]
[1758417519788,1.53331609,115640.0,115630.0,0.27094169]
[1758417521483,1.53331609,115640.0,115630.0,0.42657516]
[1758417524986,0.75251609,115640.0,115630.0,0.42657516]
[1758417525191,1.53331609,115640.0,115630.0,0.42657516]
[1758417525385,1.53331609,115640.0,115630.0,0.27094169]
[1758417526596,1.2667744,115640.0,115630.0,0.27094169]
[1758417526787,1.53331609,115640.0,115630.0,0.27094169]
[1758417526987,1.53331609,115640.0,115630.0,0.42657516]
[1758417530092,0.75251609,115640.0,115630.0,0.42657516]
[1758417530298,1.53327609,115640.0,115630.0,0.42657516]
[1758417531090,1.53327609,115640.0,115630.0,0.27094169]
[1758417531794,1.53327609,115640.0,115630.0,0.42657516]
[1758417536397,1.2667344,115640.0,115630.0,0.42657516]
[1758417536596,1.53327609,115640.0,115630.0,0.42657516]
[1758417536798,1.2667344,115640.0,115630.0,0.53413696]
[1758417537095,1.53327609,115640.0,115630.0,0.44770516]
[1758417539798,1.53327609,115640.0,115630.0,0.29207169]
[1758417543101,1.53327609,115640.0,115630.0,0.27094169]
[1758417548305,1.2667344,115640.0,115630.0,0.27094169]
[1758417548505,1.53327609,115640.0,115630.0,0.27094169]
[1758417558217,1.53327609,115640.0,115630.0,0.42654603]
[1758417558907,1.53327609,115640.0,115630.0,0.27094169]
[1758417561016,1.2667344,115640.0,115630.0,0.27094169]
[1758417561216,1.53327609,115640.0,115630.0,0.27094169]
[1758417563807,1.53327609,115640.0,115630.0,0.0044]
[1758417564013,1.53327609,115640.0,115630.0,0.27094169]
[1758417575023,1.2667344,115640.0,115630.0,0.27094169]
[1758417575223,1.53327609,115640.0,115630.0,0.27094169]
[1758417580927,1.17247609,115640.0,115630.0,0.27094169]
[1758417581115,1.53327609,115640.0,115630.0,0.27094169]
[1758417581732,1.2667344,115640.0,115630.0,0.0044]
[1758417582529,1.2667344,115640.0,115630.0,0.02671]
[1758417586035,1.2667344,115640.0,115630.0,0.18231177]
[1758417590639,1.2667344,115640.0,115630.0,0.44885275]
[1758417595031,1.2666944,115640.0,115630.0,0.44885275]
[1758417595541,1.2666944,115640.0,115630.0,0.29325098]
[1758417598838,1.2666944,115640.0,115630.0,0.44887627]
[1758417605246,1.2666944,115640.0,115630.0,0.29325098]
[1758417605643,0.9058944,115640.0,115630.0,0.29325098]
[1758417605840,1.2666944,115640.0,115630.0,0.29325098]
[1758417606942,1.2666944,115640.0,115630.0,0.44887214]
[1758417607742,1.2666944,115640.0,115630.0,0.29325098]
[1758417611453,1.2666944,115640.0,115630.0,0.0044]
[1758417611755,1.53323538,115640.0,115630.0,0.27094098]
[1758417612151,1.53323538,115640.0,115630.0,0.0044]
[1758417616359,1.17243538,115640.0,115630.0,0.0044]
[1758417616561,1.53323538,115640.0,115630.0,0.0044]
[1758417621664,1.53323538,115640.0,115630.0,0.004]
[1758417623366,1.53323538,115640.0,115630.0,0.27054098]
[1758417624165,1.2666944,115640.0,115630.0,0.27054098]
[1758417625466,1.2666944,115640.0,115630.0,0.29311098]
[1758417628268,1.2666944,115640.0,115630.0,0.44870731]
[1758417628659,1.53323538,115640.0,115630.0,0.44870731]
[1758417629358,1.2666944,115640.0,115630.0,0.44870731]
[1758417629759,1.2666944,115640.0,115630.0,0.29311098]
[1758417629963,1.2666944,115640.0,115630.0,0.44870733]
[1758417630377,1.53323538,115640.0,115630.0,0.18216635]
[1758417631871,1.2666944,115640.0,115630.0,0.44870733]
[1758417637974,0.4859744,115640.0,115630.0,0.44870733]
[1758417638176,1.2666144,115640.0,115630.0,0.44870733]
[1758417638379,0.4859744,115640.0,115630.0,0.44870733]
[1758417638581,1.2666144,115640.0,115630.0,0.44870733]
[1758417639476,1.2666144,115640.0,115630.0,0.29311098]
[1758417642482,0.9058144,115640.0,115630.0,0.29311098]
[1758417642682,1.2666144,115640.0,115630.0,0.29311098]
[1758417643887,1.53315418,115640.0,115630.0,0.29310978]
[1758417645486,1.17235418,115640.0,115630.0,0.29310978]
[1758417645684,1.53315418,115640.0,115630.0,0.29310978]
[1758417646385,1.2666144,115640.0,115630.0,0.29310978]
[1758417646586,1.53315418,115640.0,115630.0,0.29310978]
[1758417647478,1.17235418,115640.0,115630.0,0.29310978]
[1758417647684,1.53315418,115640.0,115630.0,0.29310978]
[1758417651595,1.53315418,115640.0,115630.0,0.4487037]
[1758417653294,1.53315418,115640.0,115630.0,0.29310978]
[1758417653688,1.53315418,115640.0,115630.0,0.4487037]
[1758417654594,1.17235418,115640.0,115630.0,0.4487037]
[1758417654795,1.53315418,115640.0,115630.0,0.4487037]
[1758417664101,1.53315418,115640.0,115630.0,0.29310978]
[1758417666202,0.75251418,115640.0,115630.0,0.29310978]
[1758417666402,1.53311418,115640.0,115630.0,0.29310978]
[1758417669000,0.4859744,115640.0,115630.0,0.29310978]
[1758417669200,0.4831917,115640.0,115630.0,0.29310978]
[1758417669402,1.2637517,115640.0,115630.0,0.29310978]
[1758417676008,1.2637517,115640.0,115630.0,0.02657]
[1758417676208,1.2637517,115640.0,115630.0,0.29310978]
[1758417677105,1.2637517,115640.0,115630.0,0.4486958]
[1758417679608,1.2637517,115640.0,115630.0,0.02657]
[1758417679810,1.2637517,115640.0,115630.0,0.29310978]
[1758417680107,1.53029148,115640.0,115630.0,0.29310978]
[1758417685314,1.2637517,115640.0,115630.0,0.29310978]
[1758417685515,1.53029148,115640.0,115630.0,0.29310978]
[1758417689017,1.2637517,115640.0,115630.0,0.29310978]
[1758417689222,1.53029148,115640.0,115630.0,0.29310978]
[1758417695235,1.2637517,115640.0,115630.0,0.29310978]
[1758417695434,1.53029148,115640.0,115630.0,0.29310978]
[1758417697434,1.2637517,115640.0,115630.0,0.29310978]
[1758417697738,1.53029148,115640.0,115630.0,0.29310978]
[1758417705743,1.2637517,115640.0,115630.0,0.29308955]
[1758417712445,1.2637517,115640.0,115630.0,0.44866785]
[1758417720352,1.2637517,115640.0,115630.0,0.29308955]
[1758417731155,1.2637517,115640.0,115630.0,0.02657]
[1758417731357,1.2637517,115640.0,115630.0,0.29308955]
[1758417739359,0.9029517,115640.0,115630.0,0.29308955]
[1758417739559,1.2637517,115640.0,115630.0,0.29308955]
[1758417739961,0.9029517,115640.0,115630.0,0.29308955]
[1758417740153,1.2637517,115640.0,115630.0,0.29308955]
[1758417742560,0.9029517,115640.0,115630.0,0.29308955]
[1758417742860,1.2637517,115640.0,115630.0,0.29308955]
[1758417756464,0.9029517,115640.0,115630.0,0.29308955]
[1758417756669,1.2637517,115640.0,115630.0,0.29308955]
[1758417756971,0.9029517,115640.0,115630.0,0.29308955]
[1758417757170,1.2637517,115640.0,115630.0,0.29308955]
[1758417758172,1.2637517,115640.0,115630.0,0.02657]
[1758417758373,1.2637517,115640.0,115630.0,0.29308955]
[1758417760876,1.2637517,115640.0,115630.0,0.02657]
[1758417761173,1.2637517,115640.0,115630.0,0.29308955]
[1758417765777,1.53027277,115640.0,115630.0,0.29309107]
[1758417766578,1.16947277,115640.0,115630.0,0.29309107]
[1758417766878,1.53027277,115640.0,115630.0,0.29309107]
[1758417768984,1.2637517,115640.0,115630.0,0.29309107]
[1758417769380,1.53027277,115640.0,115630.0,0.29309107]
[1758417770785,1.53027277,115640.0,115630.0,0.27052107]
[1758417771285,1.2637517,115640.0,115630.0,0.27052107]
[1758417771484,1.53027277,115640.0,115630.0,0.27052107]
[1758417781794,1.53027277,115640.0,115630.0,0.42609881]
[1758417782596,1.53027277,115640.0,115630.0,0.15957774]
[1758417782795,1.53027277,115640.0,115630.0,0.42609881]
[1758417785898,1.53027277,115640.0,115630.0,0.15957774]
[1758417786098,1.53027277,115640.0,115630.0,0.42609881]
[1758417787401,1.53027277,115640.0,115630.0,0.27052107]
[1758417788097,1.53027277,115640.0,115630.0,0.42609881]
[1758417805814,1.53027277,115640.0,115630.0,0.27052107]
[1758417811913,1.16947277,115640.0,115630.0,0.27052107]
[1758417812114,1.53027277,115640.0,115630.0,0.27052107]
[1758417813515,1.53027277,115640.0,115630.0,0.004]
[1758417813710,1.53027277,115640.0,115630.0,0.27052107]
[1758417816314,1.53027277,115640.0,115630.0,0.42609881]
[1758417820115,1.53027277,115640.0,115630.0,0.27052107]
[1758417821516,1.53027277,115640.0,115620.0,0.63283612]
[1758417821517,0.1211118,115630.0,115620.0,0.35803276]
[1758417821818,1.01630298,115630.0,115620.0,0.15638771]
[1758417822117,0.74978191,115630.0,115620.0,0.15638771]
[1758417822317,0.74978191,115630.0,115620.0,0.0008]
[1758417822517,0.74978191,115630.0,115610.0,0.58607878]
[1758417822518,0.1211193,115620.0,115610.0,0.58607878]
[1758417822718,1.52872037,115620.0,115610.0,0.58677878]
[1758417822914,1.52472037,115620.0,115610.0,0.58677878]
[1758417823217,1.59326255,115620.0,115610.0,0.58677878]
[1758417823417,1.59326255,115620.0,115610.0,0.32025771]
[1758417823620,1.59326255,115620.0,115610.0,0.58677878]
[1758417823917,1.59326255,115620.0,115610.0,0.43119107]
[1758417824114,1.59926255,115620.0,115610.0,0.43419107]
[1758417824314,1.33274148,115620.0,115610.0,0.43419107]
[1758417824514,1.59926255,115620.0,115610.0,0.43419107]
[1758417825217,1.59926255,115620.0,115610.0,0.43519107]
[1758417825417,1.60787632,115620.0,115610.0,0.43519107]
[1758417825818,1.60799833,115620.0,115610.0,0.16867]
[1758417829022,1.34135525,115620.0,115610.0,0.16867]
[1758417829214,1.60799833,115620.0,115610.0,0.16867]
[1758417833622,1.60799833,115620.0,115610.0,0.32425771]
[1758417841922,1.60803833,115620.0,115610.0,0.32425771]
[1758417843128,1.60803833,115620.0,115610.0,0.16867]
[1758417843927,1.34139525,115620.0,115610.0,0.16867]
[1758417848332,1.34139525,115620.0,115610.0,0.1899]
[1758417849935,1.60803833,115620.0,115610.0,0.1899]
[1758417850836,1.34139525,115620.0,115610.0,0.1899]
[1758417852037,1.34139525,115620.0,115610.0,0.16867]
[1758417855140,1.34139525,115620.0,115610.0,0.32425771]
[1758417863945,1.34139525,115620.0,115610.0,0.16867]
[1758417864445,1.34139525,115620.0,115610.0,0.3243508]
[1758417865341,1.34139525,115620.0,115610.0,0.16867]
[1758417870248,1.34139525,115620.0,115610.0,0.43531308]
[1758417872641,0.98059525,115620.0,115610.0,0.43531308]
[1758417872847,1.34139525,115620.0,115610.0,0.16867]
[1758417874551,1.34139525,115620.0,115610.0,0.43531308]
[1758417876749,1.60803833,115620.0,115610.0,0.16867]
[1758417877750,1.60803833,115620.0,115610.0,0.19197]
[1758417877951,1.60803833,115620.0,115610.0,0.16867]
[1758417880956,0.98059525,115620.0,115610.0,0.16867]
[1758417881250,1.34139525,115620.0,115610.0,0.16867]
[1758417886652,1.60803833,115620.0,115610.0,0.16867]
[1758417887761,1.60803705,115620.0,115610.0,0.4353118]
[1758417893263,1.60803705,115620.0,115610.0,0.16867]
[1758417893464,1.60803705,115620.0,115610.0,0.4353118]
[1758417894066,1.60803705,115620.0,115610.0,0.63765685]
[1758417895167,1.34139525,115620.0,115610.0,0.4353118]
[1758417895369,1.60803705,115620.0,115610.0,0.4353118]
[1758417899175,1.34139525,115620.0,115610.0,0.4353118]
[1758417899577,1.60803705,115620.0,115610.0,0.4353118]
[1758417902477,1.60803705,115620.0,115610.0,0.63765685]
[1758417902978,1.60803705,115620.0,115610.0,0.79333858]
[1758417903477,1.60803705,115620.0,115610.0,0.81486858]
[1758417903774,1.60803705,115620.0,115610.0,0.61252353]
[1758417903979,1.59930328,115620.0,115610.0,0.61252353]
[1758417904282,0.55246148,115620.0,115610.0,0.61252353]
[1758417904472,1.59930328,115620.0,115610.0,0.61252353]
[1758417907381,1.23850328,115620.0,115610.0,0.61252353]
[1758417907678,1.59930328,115620.0,115610.0,0.61252353]
[1758417908782,1.34134329,115620.0,115610.0,0.61252353]
[1758417909080,1.59930328,115620.0,115610.0,0.61252353]
[1758417913286,1.59930328,115620.0,115610.0,0.4568418]
[1758417915487,1.59930328,115620.0,115610.0,0.61251494]
[1758417918093,1.59930328,115620.0,115610.0,0.4568418]
[1758417918292,1.59930328,115620.0,115610.0,0.6125138]
[1758417923995,1.33266148,115620.0,115610.0,0.6125138]
[1758417924197,1.59930328,115620.0,115610.0,0.6125138]
[1758417928698,1.59930328,115620.0,115610.0,0.4568418]
[1758417928898,1.59930328,115620.0,115610.0,0.65918685]
[1758417929099,1.59930328,115620.0,115610.0,0.8148575]
[1758417930301,1.59930328,115620.0,115610.0,0.61251245]
[1758417933910,1.33266148,115620.0,115610.0,0.61251245]
[1758417934101,1.59930328,115620.0,115610.0,0.61251245]
[1758417938206,1.33266148,115620.0,115610.0,0.61251245]
[1758417938408,1.59930328,115620.0,115610.0,0.61251245]
[1758417939711,1.59930328,115620.0,115610.0,0.4568418]
[1758417939910,1.59930328,115620.0,115610.0,0.65918685]
[1758417940210,1.33266148,115620.0,115610.0,0.65918685]
[1758417940509,1.59930328,115620.0,115610.0,0.65918685]
[1758417941413,1.33266148,115620.0,115610.0,0.65918685]
[1758417941614,1.59930328,115620.0,115610.0,0.65918685]
[1758417945112,0.55246148,115620.0,115610.0,0.74563365]
[1758417945312,1.33262148,115620.0,115610.0,0.74563365]
[1758417945517,1.59926328,115620.0,115610.0,0.74563365]
[1758417947920,1.33262148,115620.0,115610.0,0.74560461]
[1758417951925,1.33262148,115620.0,115610.0,0.54325956]
[1758417954623,1.33262148,115620.0,115610.0,0.2766468]
[1758417954827,1.33262148,115620.0,115610.0,0.45681276]
[1758417956724,1.33262148,115620.0,115610.0,0.65915781]
[1758417956927,0.97182148,115620.0,115610.0,0.65915781]
[1758417968040,0.97182148,115620.0,115610.0,0.81482306]
[1758417968740,0.97182148,115620.0,115610.0,0.61247801]
[1758417968940,0.97182148,115620.0,115610.0,0.45681276]
[1758417969642,0.97182148,115620.0,115610.0,0.61247801]
[1758417971346,0.97182148,115620.0,115610.0,0.45681276]
[1758417973640,0.97182148,115620.0,115610.0,0.1902]
[1758417973844,0.97182148,115620.0,115610.0,0.45681276]